bitfinex/quotes_ETHUSD_20250813
["timestamp","ask_amount","ask_price","bid_price","bid_amount"]
[1755065807628,0.658,4631.9,4631.8,8.9511]
[1755065807931,2.81694125,4631.9,4631.8,8.496]
[1755065808127,3.01770946,4631.9,4631.8,8.496]
[1755065808502,3.01770946,4631.9,4631.8,5.174]
[1755065808703,3.45810946,4631.9,4631.8,8.495]
[1755065809624,3.01770946,4631.9,4631.8,8.495]
[1755065809930,1.02112522,4631.9,4631.8,8.495]
[1755065810702,3.30973314,4631.9,4631.8,5.174]
[1755065810902,0.55,4631.2,4630.6,5.175]
[1755065811107,0.55,4631.0,4630.7,3.322]
[1755065811315,2.70945409,4630.8,4630.7,3.322]
[1755065811503,2.90989854,4630.8,4630.7,3.322]
[1755065811719,0.85844445,4630.8,4630.7,3.322]
[1755065812034,2.81745409,4630.8,4630.7,3.322]
[1755065812204,3.01777668,4630.8,4630.7,3.322]
[1755065813350,2.70950072,4630.7,4630.6,5.175]
[1755065813536,2.90982331,4630.7,4630.6,8.497]
[1755065813705,3.35022331,4630.7,4630.6,8.497]
[1755065813909,2.90982331,4630.7,4630.6,8.497]
[1755065814505,4.00871129,4630.7,4630.6,8.497]
[1755065814719,4.49671129,4630.7,4630.6,8.497]
[1755065815055,4.95702622,4630.7,4630.6,8.497]
[1755065815213,2.70959399,4630.5,4630.4,0.001]
[1755065815409,0.75032259,4630.5,4630.4,0.001]
[1755065815615,2.81759399,4630.5,4630.4,0.4561]
[1755065815820,3.01791658,4630.5,4630.4,0.4561]
[1755065816347,0.85832259,4630.5,4630.4,3.7781]
[1755065816643,0.658,4630.5,4630.4,3.7781]
[1755065816846,2.96819945,4630.5,4630.4,3.7781]
[1755065817015,0.80860546,4630.5,4630.4,3.7781]
[1755065817647,0.80860546,4630.5,4630.4,4.2063]
[1755065817855,0.108,4630.5,4630.4,4.2063]
[1755065818412,0.658,4630.5,4630.4,3.324]
[1755065819415,0.658,4630.5,4630.4,3.811]
[1755065819642,0.658,4630.5,4630.4,3.324]
[1755065820063,0.658,4630.5,4630.4,3.811]
[1755065820359,0.658,4630.5,4630.4,3.324]
[1755065820560,0.658,4630.5,4630.4,3.811]
[1755065821036,0.108,4630.5,4630.4,4.2494]
[1755065821648,0.108,4630.5,4630.4,3.811]
[1755065822565,1.31648798,4630.5,4630.4,3.324]
[1755065822733,3.47608197,4630.5,4630.4,3.324]
[1755065823946,0.658,4630.5,4630.4,3.324]
[1755065824152,0.658,4630.5,4630.4,3.811]
[1755065824985,0.658,4630.5,4630.4,4.2494]
[1755065826067,0.658,4630.5,4630.4,3.811]
[1755065826565,0.658,4630.5,4630.4,3.324]
[1755065826866,0.658,4630.5,4630.4,3.811]
[1755065827365,0.658,4630.5,4630.4,4.2494]
[1755065827366,0.108,4630.5,4630.4,4.2494]
[1755065829064,0.658,4630.5,4630.4,4.2494]
[1755065830378,0.108,4630.5,4630.4,4.2494]
[1755065831435,0.108,4630.5,4630.4,4.2484]
[1755065831965,0.658,4630.5,4630.4,3.81]
[1755065832268,0.658,4630.5,4630.4,4.2484]
[1755065832771,0.658,4630.5,4630.4,3.323]
[1755065833474,1.1242,4630.5,4630.4,3.323]
[1755065833767,0.55,4630.4,4629.9,0.001]
[1755065833968,0.658,4630.0,4629.9,0.001]
[1755065834769,0.658,4630.0,4629.9,3.323]
[1755065835555,0.658,4630.0,4629.9,3.81]
[1755065836239,0.658,4630.0,4629.9,3.323]
[1755065837388,0.55,4629.9,4629.5,5.176]
[1755065837587,0.4662,4630.0,4629.6,3.322]
[1755065837769,0.20078233,4630.0,4629.6,3.322]
[1755065838094,0.658,4629.7,4629.6,3.322]
[1755065838246,0.658,4629.7,4629.5,5.176]
[1755065838247,0.77042,4629.7,4629.5,5.176]
[1755065838444,3.17621382,4629.6,4629.5,5.176]
[1755065838678,3.37699615,4629.6,4629.5,5.176]
[1755065839079,3.37699615,4629.6,4629.4,0.001]
[1755065839376,3.87464281,4629.5,4629.4,0.001]
[1755065839675,1.71458233,4629.5,4629.4,3.323]
[1755065840065,0.55,4629.4,4628.9,5.178]
[1755065840377,2.81824713,4629.1,4628.9,5.178]
[1755065840579,0.85878233,4629.1,4628.9,5.178]
[1755065840784,1.32498233,4629.1,4628.9,5.178]
[1755065841077,0.84025823,4629.1,4628.9,5.178]
[1755065841284,0.658,4629.1,4628.9,5.178]
[1755065841444,0.8230444,4629.1,4629.0,3.323]
[1755065844262,1.2892444,4629.1,4629.0,3.323]
[1755065844468,0.55,4629.0,4628.9,5.178]
[1755065844668,0.55,4629.0,4623.8,5.36193448]
[1755065844669,1.21722652,4629.0,4627.7,5.178]
[1755065844861,0.55,4627.7,4627.5,5.666]
[1755065845061,0.55,4628.6,4627.6,5.179]
[1755065845261,0.108,4627.7,4627.4,5.179]
[1755065845491,0.55,4628.4,4627.4,5.666]
[1755065845687,0.55,4628.4,4627.5,0.487]
[1755065845888,0.658,4627.6,4627.5,0.487]
[1755065846093,0.658,4627.6,4627.5,3.809]
[1755065846389,0.658,4627.6,4627.5,4.2474]
[1755065847793,0.108,4627.6,4627.4,5.179]
[1755065848004,1.20848798,4627.5,4627.4,5.179]
[1755065848289,0.91849532,4627.5,4627.4,8.501]
[1755065848501,0.55,4627.5,4627.4,8.501]
[1755065849210,1.0162,4627.5,4627.4,8.501]
[1755065849408,0.55,4627.5,4627.4,8.501]
[1755065851309,0.55,4627.7,4627.4,8.501]
[1755065851791,0.55,4627.5,4627.4,8.501]
[1755065852577,0.55,4627.9,4624.3,20.18809012]
[1755065852764,2.16138434,4626.7,4626.4,0.001]
[1755065852962,0.74989544,4626.6,4626.5,3.323]
[1755065853266,1.63499544,4626.6,4626.5,3.323]
[1755065853463,2.083368,4626.6,4626.4,0.001]
[1755065853662,0.55,4626.6,4626.4,0.001]
[1755065854090,0.55,4626.9,4626.4,0.4765]
[1755065854279,0.55,4626.9,4626.4,0.001]
[1755065854477,2.71132714,4626.8,4626.4,0.001]
[1755065854714,2.71146114,4626.5,4626.4,0.001]
[1755065854863,2.16159835,4626.3,4625.1,5.18]
[1755065855194,0.78613219,4626.2,4625.2,3.323]
[1755065855395,0.55,4626.6,4625.1,5.18]
[1755065855582,0.55,4626.1,4625.2,3.323]
[1755065855788,0.55,4625.9,4625.2,3.323]
[1755065856184,2.71184129,4625.7,4625.3,3.323]
[1755065856399,0.55,4625.5,4625.1,5.18]
[1755065856604,0.3280531,4626.1,4625.1,5.18]
[1755065856605,0.55,4625.3,4625.1,5.18]
[1755065856897,0.55,4626.3,4625.2,0.9289]
[1755065857095,0.648215,4626.8,4625.3,0.9289]
[1755065857297,0.648215,4626.8,4625.4,0.9289]
[1755065857501,0.55,4627.4,4625.5,0.9289]
[1755065857708,0.4307,4627.5,4625.6,4.2519]
[1755065857895,0.4307,4627.5,4625.7,3.323]
[1755065858098,0.55,4627.4,4625.7,4.2519]
[1755065858412,0.108,4625.8,4625.7,3.323]
[1755065858775,0.108,4625.8,4625.7,4.2519]
[1755065858970,0.108,4625.8,4625.7,4.67709]
[1755065859576,0.108,4625.8,4625.7,1.35409]
[1755065859777,0.108,4625.8,4625.7,4.2519]
[1755065860340,0.658,4625.8,4625.7,0.4755]
[1755065860479,0.658,4625.8,4625.7,3.7985]
[1755065860839,0.108,4625.8,4625.7,4.2519]
[1755065864313,0.108,4625.9,4625.7,0.9289]
[1755065864608,0.108,4626.1,4625.8,9.4359]
[1755065864814,0.108,4626.1,4625.9,5.19849]
[1755065865292,0.108,4626.1,4626.0,0.9289]
[1755065869722,0.02493759,4626.1,4626.0,0.9289]
[1755065869884,0.4307,4628.5,4626.0,0.9289]
[1755065870214,0.108,4626.8,4626.1,0.9289]
[1755065870415,0.108,4626.8,4626.2,4.783549]
[1755065870620,0.108,4626.8,4626.4,20.13019064]
[1755065870818,0.108,4627.2,4626.5,0.108]
[1755065871020,0.108,4627.2,4626.6,3.324]
[1755065871185,0.108,4627.2,4626.7,0.4755]
[1755065871435,0.108,4627.2,4626.8,1.42999]
[1755065871694,0.108,4627.2,4626.9,3.325]
[1755065871889,0.108,4627.2,4626.9,4.2539]
[1755065872084,0.108,4627.2,4626.9,3.325]
[1755065872329,0.108,4627.2,4627.0,0.9289]
[1755065872543,0.108,4627.2,4627.1,0.475499]
[1755065873031,0.108,4627.2,4627.1,1.404399]
[1755065873442,0.108,4627.2,4627.1,0.950999]
[1755065873648,0.108,4627.2,4627.1,1.404399]
[1755065874239,0.55,4628.4,4627.1,1.404399]
[1755065874441,0.108,4627.5,4627.2,3.7959399]
[1755065874738,0.108,4627.5,4627.3,0.9289]
[1755065875040,0.108,4627.8,4627.3,0.9289]
[1755065875342,0.108,4627.8,4627.4,0.9289]
[1755065875549,0.4307,4629.5,4627.5,3.323]
[1755065875714,0.108,4628.0,4627.6,0.42519]
[1755065876049,0.4307,4629.5,4627.6,1.35409]
[1755065876219,0.108,4628.2,4627.7,0.9289]
[1755065876426,0.108,4628.5,4627.9,20.13019064]
[1755065876611,0.108,4628.5,4628.0,6.1089]
[1755065876938,0.108,4628.5,4628.1,5.52955568]
[1755065877141,0.108,4628.5,4628.1,6.45845568]
[1755065877351,0.002,4630.0,4628.2,1.8934]
[1755065877524,0.002,4630.0,4629.4,20.13019064]
[1755065877722,0.002,4630.0,4629.5,3.517]
[1755065878044,0.002,4630.0,4629.6,2.20655568]
[1755065878244,0.002,4630.0,4629.6,3.22176968]
[1755065878414,0.002,4630.0,4629.6,2.29286968]
[1755065878608,0.002,4630.0,4629.7,0.9289]
[1755065878808,0.002,4630.0,4629.8,3.375]
[1755065879007,0.002,4630.0,4629.9,4.03467697]
[1755065879244,0.002,4630.0,4629.9,3.375]
[1755065879840,0.458,4630.0,4629.9,3.375]
[1755065880230,0.002,4630.0,4629.9,3.375]
[1755065882747,0.002,4630.0,4629.9,4.3308]
[1755065883114,0.002,4630.0,4629.9,3.8623]
[1755065883319,0.002,4630.0,4629.9,4.24853]
[1755065884113,0.002,4630.0,4629.9,3.76123]
[1755065884316,0.002,4630.0,4629.9,3.371]
[1755065884520,1.008,4630.0,4629.0,2.694]
[1755065884721,1.008,4630.0,4629.1,5.178]
[1755065885759,1.008,4630.0,4629.2,3.372]
[1755065885917,0.55,4629.9,4629.2,3.372]
[1755065886120,1.006,4629.9,4629.2,3.372]
[1755065886318,0.55,4629.7,4629.2,3.372]
[1755065886562,0.14873,4629.9,4629.2,3.372]
[1755065886747,0.55,4629.5,4629.2,3.372]
[1755065886949,1.006,4629.5,4629.2,3.372]
[1755065887548,0.002,4631.0,4629.3,0.6273]
[1755065887748,0.002,4631.0,4629.4,0.14]
[1755065887924,0.002,4631.0,4629.5,3.517]
[1755065888257,0.002,4631.0,4630.3,0.108]
[1755065888458,0.002,4631.0,4630.9,0.108]
[1755065888667,0.002,4631.0,4630.9,3.485]
[1755065888961,0.002,4631.0,4630.5,0.4873]
[1755065889119,0.002,4631.0,4629.8,0.4873]
[1755065889319,0.108,4630.6,4629.9,3.485]
[1755065889557,0.108,4630.6,4630.0,0.39723]
[1755065891328,0.108,4630.1,4629.2,0.4873]
[1755065891526,0.55,4630.6,4629.3,3.375]
[1755065891527,0.108,4629.7,4629.3,3.375]
[1755065891756,0.108,4629.7,4629.3,3.8623]
[1755065892142,0.108,4630.2,4629.6,0.108]
[1755065892360,0.002,4631.0,4629.7,0.9558]
[1755065892662,0.108,4630.1,4629.1,5.178]
[1755065892870,0.108,4629.5,4629.2,3.375]
[1755065893227,0.108,4629.5,4629.3,8.553]
[1755065893424,0.108,4629.4,4629.3,5.177]
[1755065893688,0.108,4629.4,4629.3,8.553]
[1755065893828,0.564,4629.4,4629.3,8.553]
[1755065894721,0.108,4629.4,4629.3,8.553]
[1755065895464,0.108,4629.4,4629.3,9.58963417]
[1755065895648,0.108,4629.4,4629.3,10.07693417]
[1755065895958,0.108,4629.4,4629.3,10.54543417]
[1755065896164,0.108,4629.5,4629.3,10.54543417]
[1755065896367,0.002,4631.0,4629.4,0.9558]
[1755065896659,0.002,4631.1,4629.6,0.55]
[1755065896869,0.002,4631.1,4629.8,0.55]
[1755065897052,0.002,4631.1,4629.8,0.65]
[1755065897224,0.002,4633.2,4630.0,0.55]
[1755065897424,0.002,4633.2,4630.1,3.55658]
[1755065897628,0.002,4633.2,4630.1,4.51238]
[1755065897850,0.002,4633.2,4630.1,3.55658]
[1755065898036,0.456,4633.0,4630.2,0.9558]
[1755065898248,0.456,4633.0,4630.3,3.395]
[1755065898449,0.456,4633.0,4630.4,0.451138]
[1755065898886,0.456,4633.0,4630.4,1.862938]
[1755065899364,0.456,4633.0,4630.5,0.9558]
[1755065899658,0.456,4632.5,4630.6,3.394]
[1755065899859,0.456,4632.5,4630.6,4.3498]
[1755065900061,0.456,4632.5,4630.7,1.4814938]
[1755065900260,0.55,4633.0,4630.7,1.4814938]
[1755065900462,0.002,4633.2,4630.8,0.9558]
[1755065900833,0.002,4633.2,4630.9,0.9558]
[1755065901032,0.002,4633.2,4631.0,3.393]
[1755065901257,0.002,4633.2,4631.0,4.3488]
[1755065901462,0.002,4633.2,4631.1,1.39068]
[1755065901850,0.002,4633.2,4631.2,0.9558]
[1755065902360,0.002,4633.2,4631.4,5.176]
[1755065902561,0.002,4633.2,4631.4,8.566]
[1755065902780,0.002,4633.2,4631.4,10.517468]
[1755065902961,0.456,4633.1,4631.4,10.517468]
[1755065903971,0.456,4633.1,4631.4,10.973468]
[1755065904268,0.456,4632.7,4631.4,7.114968]
[1755065904468,0.456,4632.7,4631.4,10.017668]
[1755065905496,0.002,4633.2,4631.4,10.973468]
[1755065905969,0.002,4632.0,4631.4,10.973468]
[1755065906543,0.002,4632.0,4631.4,11.081468]
[1755065907255,0.002,4632.0,4631.4,7.222968]
[1755065907455,0.002,4632.0,4631.4,10.609968]
[1755065907649,0.002,4632.0,4631.4,10.121668]
[1755065908265,0.002,4632.0,4631.4,10.608968]
[1755065908788,0.002,4632.0,4631.4,11.077468]
[1755065909785,0.002,4632.0,4631.4,6.735668]
[1755065910078,0.002,4632.0,4631.4,5.74]
[1755065910248,0.4735,4631.5,4631.4,8.668]
[1755065910458,0.002,4631.5,4631.4,8.668]
[1755065913348,0.002,4631.5,4631.4,9.676]
[1755065915080,0.002,4632.0,4631.4,9.676]
[1755065915378,0.002,4632.0,4631.5,4.1229]
[1755065915585,0.002,4632.0,4631.9,0.108]
[1755065915781,0.002,4632.0,4631.9,3.489]
[1755065916076,0.002,4632.0,4631.9,3.9543]
[1755065918564,0.002,4632.0,4631.9,4.040563]
[1755065918765,0.002,4632.0,4631.9,4.0227893]
[1755065919276,0.002,4632.0,4631.9,0.6417893]
[1755065919479,0.4735,4632.0,4631.9,3.572263]
[1755065919696,0.4735,4632.0,4631.9,3.486]
[1755065920359,0.9601,4632.0,4631.9,3.379]
[1755065920760,0.9601,4632.0,4631.9,8.553]
[1755065920986,1.5101,4632.0,4631.9,5.174]
[1755065921160,1.67191,4632.0,4631.9,8.553]
[1755065921897,0.55,4631.9,4631.5,2.69]
[1755065922202,1.5081,4631.9,4631.6,8.553]
[1755065922366,1.5081,4631.9,4631.7,5.174]
[1755065922567,0.55,4631.9,4631.8,5.174]
[1755065922791,0.002,4632.0,4631.8,5.174]
[1755065922994,1.1446,4631.9,4631.8,5.174]
[1755065923183,1.73076,4631.9,4631.8,5.174]
[1755065923384,1.6161,4631.9,4631.8,5.174]
[1755065923695,1.6161,4631.9,4631.8,8.552]
[1755065924667,1.6161,4631.9,4629.6,0.4347]
[1755065924668,0.55,4631.8,4629.3,0.4663]
[1755065924865,0.108,4630.6,4630.0,0.108]
[1755065925298,0.4715,4630.5,4630.0,0.108]
[1755065925497,0.108,4630.6,4630.1,5.174]
[1755065925702,0.4715,4630.4,4630.1,5.174]
[1755065925902,0.5946,4630.6,4630.1,5.174]
[1755065925903,0.4715,4630.3,4630.1,5.174]
[1755065926074,0.4866,4630.3,4630.2,3.379]
[1755065926500,0.5946,4630.3,4630.2,3.379]
[1755065926701,1.0661,4630.3,4630.2,3.379]
[1755065926877,0.5795,4630.3,4630.2,3.379]
[1755065927079,0.5795,4630.3,4630.2,4.2343]
[1755065927080,0.108,4630.3,4630.2,4.2343]
[1755065927908,0.002,4632.0,4630.2,5.2423]
[1755065927909,0.108,4631.6,4630.2,5.2423]
[1755065928070,0.108,4631.6,4630.9,0.108]
[1755065928272,0.108,4631.6,4631.0,3.381]
[1755065929310,0.4715,4631.9,4631.3,0.108]
[1755065929311,0.108,4631.9,4631.3,0.108]
[1755065929476,0.108,4631.9,4631.4,3.381]
[1755065930294,0.108,4631.9,4631.5,3.38]
[1755065930609,0.4715,4631.8,4631.5,3.38]
[1755065930804,0.108,4631.9,4631.5,3.38]
[1755065931012,0.108,4631.9,4631.5,3.7288]
[1755065931196,0.002,4632.0,4631.6,0.9]
[1755065931381,0.002,4632.0,4631.8,0.108]
[1755065931584,0.002,4632.0,4631.9,3.379]
[1755065932626,0.002,4632.0,4631.9,3.8443]
[1755065932828,0.002,4632.0,4631.9,4.23953]
[1755065933700,0.002,4632.0,4631.9,3.77423]
[1755065934022,0.002,4632.0,4631.9,3.77323]
[1755065936339,0.4735,4632.0,4631.9,3.378]
[1755065936697,0.002,4632.0,4631.9,3.378]
[1755065937006,0.4735,4632.0,4631.9,3.376]
[1755065937332,0.9601,4632.0,4631.9,3.376]
[1755065937627,0.002,4632.0,4631.9,3.7136]
[1755065937828,0.002,4632.0,4631.9,4.7216]
[1755065938934,0.002,4632.5,4631.9,4.7216]
[1755065939126,0.002,4632.5,4632.0,3.59]
[1755065939427,0.002,4632.5,4632.4,0.108]
[1755065939730,0.002,4632.5,4632.4,8.657]
[1755065939925,0.002,4632.5,4632.4,9.61171]
[1755065940118,0.002,4632.5,4632.4,10.50181]
[1755065940320,0.002,4632.5,4632.4,9.61171]
[1755065940834,0.002,4632.5,4632.4,10.07311]
[1755065941509,0.002,4632.5,4632.4,10.50181]
[1755065942526,0.002,4632.9,4632.4,10.50181]
[1755065942732,0.002,4632.9,4632.5,1.050181]
[1755065942932,0.002,4632.9,4632.8,0.108]
[1755065943133,0.002,4632.9,4632.8,3.481]
[1755065943331,0.002,4633.2,4632.8,4.9211]
[1755065943637,0.002,4633.2,4633.1,0.108]
[1755065943804,0.002,4633.2,4633.1,3.97211]
[1755065944004,0.002,4633.2,4633.1,4.86221]
[1755065946335,0.002,4633.2,4633.1,4.43151]
[1755065946511,0.002,4633.2,4633.1,4.86021]
[1755065947826,0.002,4633.2,4633.1,4.43151]
[1755065948339,0.002,4634.7,4633.2,0.55]
[1755065948543,0.002,4634.7,4633.2,1.883251]
[1755065948740,0.002,4634.7,4633.3,0.4287]
[1755065949036,0.4724,4634.7,4633.6,0.08196231]
[1755065949429,0.4724,4634.7,4633.6,0.54336231]
[1755065949744,0.4724,4634.7,4633.6,0.97766854]
[1755065949916,0.4724,4634.7,4633.6,0.51626854]
[1755065949917,0.4704,4634.4,4633.6,0.51626854]
[1755065950317,0.4704,4634.0,4633.6,0.51626854]
[1755065950718,0.9437,4633.7,4633.6,0.51626854]
[1755065950924,0.9437,4633.7,4633.6,0.08196231]
[1755065951721,0.9437,4633.7,4633.4,3.371]
[1755065951938,0.502,4633.7,4633.4,3.371]
[1755065952137,0.4704,4633.6,4633.4,3.371]
[1755065952336,0.502,4633.7,4633.4,3.371]
[1755065952547,0.9417,4633.6,4633.4,3.371]
[1755065952735,0.9417,4633.5,4633.4,3.371]
[1755065953343,0.4704,4633.5,4633.4,3.371]
[1755065955350,0.9417,4633.5,4633.4,3.371]
[1755065957317,1.09707,4633.5,4633.4,3.371]
[1755065959542,1.09707,4633.5,4633.4,3.364]
[1755065959723,1.09707,4633.5,4632.3,0.108]
[1755065959918,0.108,4633.0,4632.4,8.536]
[1755065960454,0.4704,4632.9,4632.4,8.536]
[1755065960625,0.108,4632.7,4632.4,8.536]
[1755065960829,0.4704,4632.6,4632.4,8.536]
[1755065961041,0.4704,4632.5,4632.4,8.536]
[1755065962528,0.108,4632.7,4632.4,9.3896]
[1755065964057,0.9417,4632.6,4632.4,8.536]
[1755065964365,0.4704,4632.5,4632.4,8.536]
[1755065966242,0.108,4632.7,4632.4,8.536]
[1755065966561,0.4704,4632.6,4632.4,8.536]
[1755065966772,0.4704,4632.5,4632.4,8.536]
[1755065966940,0.9417,4632.5,4632.4,8.536]
[1755065967829,1.4917,4632.5,4632.4,8.536]
[1755065968033,1.65167,4632.5,4632.4,8.536]
[1755065968877,0.55,4632.4,4632.3,5.173]
[1755065969033,0.55,4632.4,4632.3,5.174]
[1755065969236,1.5997,4632.4,4632.3,5.174]
[1755065970036,1.5997,4632.4,4632.3,8.532]
[1755065970347,1.775667,4632.4,4632.3,8.532]
[1755065976070,1.775667,4632.4,4632.2,5.174]
[1755065976273,0.946,4632.3,4631.7,5.174]
[1755065976432,0.658,4631.8,4631.7,5.174]
[1755065977264,0.658,4631.8,4631.7,8.525]
[1755065977574,1.1225,4631.8,4631.7,8.525]
[1755065977870,1.604,4631.8,4631.7,8.525]
[1755065978272,1.7644,4631.8,4631.7,8.525]
[1755065979048,0.55,4631.7,4631.4,0.001]
[1755065979250,0.55,4631.6,4631.5,5.174]
[1755065979566,1.496,4631.6,4631.5,5.174]
[1755065979772,1.604,4631.6,4631.5,5.174]
[1755065979955,1.79680185,4631.6,4631.4,0.001]
[1755065980159,0.946,4631.5,4631.4,0.001]
[1755065980372,0.946,4631.5,4631.4,0.949]
[1755065980744,0.946,4631.5,4631.0,0.001]
[1755065980745,1.496,4631.5,4631.0,0.001]
[1755065980940,0.55,4631.3,4631.0,0.001]
[1755065981268,0.55,4631.1,4631.0,0.001]
[1755065981502,0.658,4631.1,4631.0,0.001]
[1755065981770,1.1225,4631.1,4631.0,0.001]
[1755065982451,1.1225,4631.1,4631.0,2.102]
[1755065984875,0.658,4631.1,4629.3,0.109]
[1755065985076,0.946,4631.0,4629.6,1.323]
[1755065985276,0.55,4630.8,4629.7,0.4555]
[1755065985474,0.55,4630.8,4629.7,5.6305]
[1755065985676,0.108,4629.8,4629.7,5.6305]
[1755065985877,0.55,4630.8,4629.7,6.0592]
[1755065986068,0.108,4630.0,4629.7,5.175]
[1755065986273,0.108,4630.0,4629.8,0.8842]
[1755065986784,0.108,4630.0,4629.9,0.8842]
[1755065988045,0.108,4630.0,4629.9,3.8005]
[1755065988240,0.108,4630.0,4629.9,3.345]
[1755065988445,0.108,4630.0,4629.9,3.8005]
[1755065988683,0.108,4630.0,4629.9,4.2292]
[1755065990053,0.4645,4631.5,4629.9,5.16962]
[1755065990254,0.108,4630.3,4630.0,0.8842]
[1755065990565,0.108,4630.3,4630.1,0.8842]
[1755065991078,0.108,4630.3,4630.2,0.4555]
[1755065991283,0.108,4630.3,4629.9,0.94042]
[1755065991496,0.4645,4630.2,4630.0,3.344]
[1755065991649,0.55,4630.5,4630.0,3.344]
[1755065991850,0.5725,4630.1,4630.0,3.344]
[1755065992264,0.108,4630.1,4630.0,3.344]
[1755065995385,0.5725,4630.1,4630.0,3.344]
[1755065995910,1.604,4630.1,4630.0,3.344]
[1755065996201,1.7644,4630.1,4630.0,3.344]
[1755065999564,0.8184,4630.1,4630.0,3.344]
[1755065999769,0.4489,4631.1,4630.0,3.8311]
[1755065999995,0.108,4630.1,4630.0,3.8311]
[1755066000198,0.108,4630.1,4630.0,4.2953]
[1755066000891,0.108,4630.1,4630.0,3.8311]
[1755066001277,0.108,4630.1,4630.0,5.19601]
[1755066001681,0.108,4630.5,4630.0,5.19601]
[1755066001885,0.108,4630.5,4630.0,4.24471]
[1755066002069,0.108,4630.5,4630.1,0.9513]
[1755066002270,0.108,4630.8,4630.1,0.9513]
[1755066002569,0.108,4631.0,4630.3,0.108]
[1755066002771,0.108,4631.0,4630.4,0.9513]
[1755066003067,0.108,4631.0,4630.5,4.2913]
[1755066003277,0.108,4631.2,4630.6,1.0593]
[1755066003492,0.108,4631.2,4630.6,0.108]
[1755066003698,0.108,4631.2,4630.7,1.2961]
[1755066003883,0.108,4631.2,4630.7,0.3448]
[1755066004089,0.108,4631.2,4630.8,0.9513]
[1755066004408,0.108,4631.2,4630.9,0.9513]
[1755066004608,0.108,4631.2,4631.0,3.339]
[1755066004902,0.108,4631.2,4631.0,3.8261]
[1755066005070,0.108,4631.2,4631.0,3.339]
[1755066005269,0.108,4631.2,4631.1,0.4871]
[1755066006781,0.108,4631.2,4631.0,3.339]
[1755066007100,0.108,4631.2,4631.1,0.4871]
[1755066007771,0.108,4631.2,4631.0,3.339]
[1755066009301,0.108,4631.2,4631.0,3.8261]
[1755066009502,0.108,4631.2,4631.1,0.4871]
[1755066010081,0.4489,4632.6,4631.1,1.33391]
[1755066010281,0.108,4631.7,4631.1,0.84681]
[1755066010484,0.4489,4633.0,4631.2,0.9513]
[1755066010688,0.4489,4633.0,4631.1,0.38261]
[1755066010689,0.108,4632.1,4631.4,0.108]
[1755066010887,0.108,4632.1,4631.5,3.336]
[1755066011115,0.4489,4633.0,4631.6,1.2957]
[1755066011414,0.4489,4633.0,4631.7,0.9513]
[1755066011618,0.4489,4633.0,4631.8,5.6631]
[1755066011911,0.108,4632.3,4631.9,3.336]
[1755066012085,0.108,4632.3,4632.0,0.4871]
[1755066012684,0.108,4632.3,4632.1,0.4871]
[1755066012883,0.108,4632.3,4632.1,0.9513]
[1755066013081,0.108,4632.3,4632.2,0.4871]
[1755066013416,0.108,4632.3,4631.9,3.336]
[1755066014695,0.108,4632.3,4631.9,3.8231]
[1755066015491,0.108,4632.3,4632.0,0.4871]
[1755066018215,0.108,4632.3,4631.9,3.336]
[1755066018399,0.108,4632.3,4632.1,0.4871]
[1755066019295,0.108,4632.3,4632.2,3.335]
[1755066019699,0.108,4632.3,4632.2,3.8221]
[1755066019899,0.108,4632.3,4632.2,3.335]
[1755066021632,0.108,4632.7,4632.2,3.335]
[1755066021994,0.5569,4632.7,4632.2,3.335]
[1755066022205,0.9311,4632.6,4632.3,3.335]
[1755066022521,0.9311,4632.5,4632.4,3.335]
[1755066022826,1.05259576,4632.5,4632.4,3.335]
[1755066023031,0.67839576,4632.5,4632.4,3.335]
[1755066023504,0.108,4632.5,4632.4,3.335]
[1755066024529,0.108,4632.5,4632.4,3.8221]
[1755066025730,0.108,4632.9,4632.4,4.2863]
[1755066025901,0.108,4632.9,4632.5,0.4871]
[1755066026095,0.002,4633.0,4632.6,0.49021]
[1755066026402,0.4509,4633.0,4632.7,3.335]
[1755066026594,0.4509,4633.0,4631.9,0.4871]
[1755066026595,0.4509,4633.0,4632.8,3.335]
[1755066026798,0.4509,4633.0,4632.9,3.335]
[1755066029537,0.002,4633.0,4632.9,3.335]
[1755066030635,0.002,4633.0,4632.9,3.7876]
[1755066031562,0.002,4633.0,4632.9,4.63556]